bitfinex-derivatives/quotes_SOLF0:USTF0_20240816
["timestamp","ask_amount","ask_price","bid_price","bid_amount"]
[1723823919233,2.79808076,137.97,137.95,3.67256588]
[1723823919732,0.04628076,137.97,137.95,3.67256588]
[1723823920137,0.04628076,137.97,137.96,45.3833]
[1723823921432,0.04628076,137.97,137.96,41.76]
[1723823922232,0.04628076,137.97,137.95,0.04896588]
[1723823923128,0.04628076,137.97,137.96,41.76]
[1723823923633,0.04628076,137.97,137.96,45.3833]
[1723823927742,0.04628076,137.97,137.96,3.6233]
[1723823930438,4.60626907,137.97,137.96,3.6233]
[1723823931338,4.55998831,137.97,137.96,3.6233]
[1723823931539,4.50096907,137.97,137.96,3.6233]
[1723823932135,7.253,138.04,137.95,41.80896588]
[1723823932340,47.72,138.06,137.95,41.76]
[1723823932530,41.76,138.04,137.95,45.4142133]
[1723823932735,41.76,138.04,137.98,0.05542444]
[1723823932736,0.05263965,138.01,137.98,0.05542444]
[1723823934539,5.36363965,138.01,137.98,0.05542444]
[1723823935837,41.76,138.0,137.98,0.05542444]
[1723823938539,5.36363965,138.01,137.98,0.05542444]
[1723823939542,0.05263965,138.01,137.98,0.05542444]
[1723823940341,3.55938416,138.0,137.98,0.05542444]
[1723823940654,2.6319,137.99,137.98,0.05542444]
[1723823942250,0.05263965,138.01,137.98,16.75542444]
[1723823943545,4.56152389,138.0,137.98,0.05542444]
[1723823943846,4.56152389,137.99,137.98,0.05542444]
[1723823948754,4.56745483,137.99,137.98,0.05542444]
[1723823950253,5.1817,138.0,137.98,0.05542444]
[1723823950461,4.56892095,137.99,137.98,0.05542444]
[1723823951169,4.56892095,137.99,137.96,3.6233]
[1723823951469,4.56892095,137.98,137.96,3.6233]
[1723823951665,5.1817,138.0,137.97,3.6231]
[1723823951867,4.57163316,137.99,137.97,3.6231]
[1723823952066,4.57163316,137.98,137.97,3.6231]
[1723823952463,4.57163316,137.98,137.97,3.67213429]
[1723823953186,4.57223968,137.98,137.97,3.67213429]
[1723823954571,4.57223968,137.98,137.97,0.04903429]
[1723823956169,4.57223968,137.98,137.97,3.67213429]
[1723823956572,4.57223968,137.98,137.97,0.04903429]
[1723823959075,4.57223968,137.98,137.97,3.67213429]
[1723823959574,4.57223968,137.98,137.97,0.04903429]
[1723823961175,4.57223968,137.98,137.83,36.233]
[1723823961373,7.32513968,137.97,137.9,41.75]
[1723823961685,4.57223968,137.96,137.93,3.6241]
[1723823961877,4.57223968,137.95,137.93,3.6241]
[1723823962176,4.57223968,137.94,137.93,3.6241]
[1723823962569,4.57223968,137.94,137.93,3.67614719]
[1723823963972,4.57223968,137.94,137.93,20.38614719]
[1723823964593,0.05447918,137.95,137.93,20.38614719]
[1723823964770,4.56891241,137.94,137.93,20.38614719]
[1723823966073,5.96,137.99,137.93,20.38614719]
[1723823966074,5.96,137.99,137.93,83.60204719]
[1723823966379,5.96,137.99,137.96,16.71]
[1723823966579,2.5544,138.01,137.96,20.3333]
[1723823967277,0.05373253,138.0,137.97,0.05468444]
[1723823971381,3.65685373,138.0,137.97,0.05468444]
[1723823971885,3.65685373,138.0,137.94,16.71]
[1723823972180,16.71,137.98,137.89,5.96]
[1723823972488,16.71,137.98,137.92,20.3342]
[1723823972680,16.71,137.98,137.93,16.71]
[1723823972880,3.66182247,137.98,137.93,16.71]
[1723823973083,0.04692513,137.97,137.94,0.04654997]
[1723823973281,0.04692513,137.97,137.95,16.71]
[1723823973784,0.04692513,137.97,137.95,20.3336]
[1723823973981,0.04692513,137.97,137.96,16.71]
[1723823974177,0.04692513,137.97,137.96,20.3333]
[1723823976282,0.04692513,137.97,137.96,16.71]
[1723823979282,0.04692513,137.97,137.96,20.3333]
[1723823985793,0.04692513,137.97,137.96,16.71]
[1723823987095,0.04692513,137.97,137.94,16.75654997]
[1723823987495,0.04692513,137.97,137.95,3.6234]
[1723823988195,0.04692513,137.97,137.94,20.38024997]
[1723823988490,0.04692513,137.97,137.94,0.04654997]
[1723823988691,4.55150469,137.96,137.95,16.71]
[1723823988890,4.55150469,137.96,137.95,20.3336]
[1723823989399,4.55149002,137.96,137.95,20.3336]
[1723823990193,4.55149002,137.96,137.95,3.6236]
[1723823990495,4.55149002,137.96,137.95,20.3336]
[1723823993093,4.55313835,137.96,137.94,0.04654997]
[1723823993298,4.55313835,137.95,137.94,16.75654997]
[1723823993628,1.322,137.96,137.94,16.75654997]
[1723823993790,4.55236414,137.95,137.94,16.75654997]
[1723823993990,4.55236414,137.95,137.94,0.04654997]
[1723823994189,6.38496414,137.95,137.94,0.04654997]
[1723823997001,4.55236414,137.95,137.94,0.04654997]
[1723823997597,1.322,137.96,137.94,0.04654997]
[1723823997795,1.322,137.96,137.95,16.71]
[1723823997999,5.87783853,137.96,137.95,16.71]
[1723823999801,5.87783853,137.96,137.94,0.04654997]
[1723824000004,4.55583853,137.95,137.94,0.04654997]
[1723824000516,1.322,137.96,137.9,16.71]
[1723824000800,1.322,137.96,137.83,5.94]
[1723824001009,4.5542298,137.95,137.83,5.94]
[1723824001204,4.5542298,137.94,137.83,5.94]
[1723824001396,5.8173298,137.93,137.88,3.6253]
[1723824001598,4.5542298,137.92,137.88,3.6253]
[1723824001895,3.1349,137.93,137.88,3.6253]
[1723824002993,4.5511014,137.92,137.88,3.6253]
[1723824003198,4.5511014,137.91,137.87,3.6256]
[1723824003398,4.5511014,137.9,137.83,5.94]
[1723824003604,4.5511014,137.89,137.87,3.6254]
[1723824003801,4.5511014,137.88,137.83,5.94]
[1723824004001,0.05385652,137.92,137.83,5.94]
[1723824004203,4.55446903,137.91,137.83,5.94]
[1723824004496,0.05385652,137.92,137.83,5.94]
[1723824004713,4.55535745,137.91,137.9,3.6249]
[1723824005306,4.55659803,137.91,137.9,3.6249]
[1723824007104,0.04681493,137.92,137.91,3.6246]
[1723824007305,4.60615406,137.92,137.91,3.6246]
[1723824007507,4.60615406,137.92,137.88,5.94]
[1723824007804,4.55933913,137.91,137.9,3.6249]
[1723824008407,4.55933913,137.91,137.89,3.6251]
[1723824008604,1.39941493,137.92,137.88,5.94]
[1723824008805,4.56100331,137.91,137.88,5.94]
[1723824009006,4.56100331,137.9,137.89,3.625]
[1723824009305,4.56100331,137.9,137.89,0.04898968]
[1723824009506,4.55959681,137.9,137.89,0.04898968]
[1723824011207,4.55959681,137.9,137.85,3.626]
[1723824011409,4.55959681,137.89,137.85,3.626]
[1723824011609,1.3806,137.91,137.82,9.5668]
[1723824011816,4.55716367,137.9,137.79,5.94]
[1723824012112,21.26716367,137.89,137.83,16.71]
[1723824012413,0.05343673,137.86,137.83,0.046253]
[1723824012609,4.55716367,137.85,137.83,0.046253]
[1723824012808,9.52879552,137.84,137.83,0.046253]
[1723824013312,5.85696367,137.84,137.75,5.94]
[1723824013520,3.59314456,137.83,137.8,16.71]
[1723824013708,4.5531448,137.82,137.8,16.71]
[1723824013920,1.2998,137.84,137.79,3.6278]
[1723824014112,4.55192698,137.83,137.78,45.4179]
[1723824014318,1.2998,137.84,137.78,41.79]
[1723824014521,10.49166429,137.83,137.78,41.79]
[1723824014816,4.60566689,137.82,137.79,0.05231169]
[1723824015020,4.55166429,137.81,137.8,5.94]
[1723824015320,4.89076888,137.84,137.78,41.79]
[1723824015521,0.05355685,137.82,137.8,41.79]
[1723824015711,0.05355685,137.82,137.81,5.92]
[1723824015912,0.05355685,137.82,137.8,41.79]
[1723824016314,1.36055685,137.82,137.8,41.79]
[1723824016921,1.36055685,137.82,137.81,5.92]
[1723824017111,1.36055685,137.82,137.8,41.79]
[1723824017316,1.36055685,137.82,137.79,3.68305449]
[1723824017519,1.36055685,137.82,137.79,45.47305449]
[1723824017818,1.2998,137.84,137.79,45.47305449]
[1723824017819,1.2998,137.84,137.81,41.79]
[1723824018021,7.253,137.89,137.83,41.79]
[1723824018217,4.55188515,137.88,137.85,41.79]
[1723824018416,4.55135571,137.87,137.86,5.92]
[1723824018623,5.92095571,137.87,137.86,3.8155]
[1723824018916,1.3696,137.87,137.86,5.92]
[1723824019821,1.3696,137.87,137.85,41.84345809]
[1723824020018,1.3696,137.87,137.86,5.92]
[1723824020622,48.20922333,138.07,137.86,47.71]
[1723824020815,4.5590131,137.96,137.93,41.79]
[1723824021013,4.5590131,137.95,137.94,5.92]
[1723824021451,230.0,138.02,137.94,47.71]
[1723824021623,4.5612347,138.01,137.96,3.6233]
[1723824021818,4.5612347,138.0,137.97,41.79]
[1723824022122,4.61434637,137.99,137.97,41.84101605]
[1723824022320,0.05311167,137.99,137.98,5.92]
[1723824022522,0.05311167,137.99,137.97,41.84101605]
[1723824022818,0.05311167,137.99,137.98,5.92]
[1723824023022,0.05311167,137.99,137.97,41.84101605]
[1723824023421,0.05311167,137.99,137.97,45.46391605]
[1723824023625,0.05311167,137.99,137.97,41.84101605]
[1723824024122,0.05311167,137.99,137.97,47.76101605]
[1723824024622,0.05311167,137.99,137.97,5.97101605]
[1723824024823,0.05311167,137.99,137.97,0.05101605]
[1723824026213,0.05311167,137.99,137.93,41.79]
[1723824026414,10.48022474,137.98,137.9,41.79]
[1723824026718,4.56022474,137.97,137.9,45.4147]
[1723824026922,4.56022474,137.96,137.9,45.4147]
[1723824027117,47.71,137.98,137.9,3.6247]
[1723824027332,47.71,137.98,137.91,3.6246]
[1723824027525,43.1133,138.0,137.9,41.79]
[1723824027721,0.05444668,137.95,137.93,0.05530648]
[1723824028226,5.92,137.97,137.93,0.05530648]
[1723824028622,0.05170423,137.95,137.93,0.05530648]
[1723824029826,3.74322884,137.95,137.93,0.05530648]
[1723824030220,1.4001,137.94,137.88,41.79]
[1723824030421,1.4001,137.94,137.87,41.79]
[1723824030627,1.4001,137.94,137.85,41.79]
[1723824030923,46.35092003,137.93,137.83,41.79]
[1723824031129,10.48092003,137.92,137.83,41.79]
[1723824031317,4.56092003,137.91,137.83,41.79]
[1723824031519,4.56092003,137.9,137.84,3.6264]
[1723824031821,4.61369599,137.89,137.87,0.05081863]
[1723824032026,0.05459043,137.89,137.83,3.6267]
[1723824032228,0.05459043,137.89,137.8,52.22]
[1723824032229,0.05459043,137.89,137.82,52.22]
[1723824032426,5.92,137.88,137.86,52.22]
[1723824032623,0.05459043,137.89,137.88,3.6254]
[1723824032922,1.3996,137.91,137.88,55.8454]
[1723824033435,0.04894325,137.9,137.88,52.22]
[1723824033625,0.04894325,137.9,137.87,0.04684458]
[1723824033825,0.04894325,137.9,137.87,3.67234458]
[1723824034023,0.04894325,137.9,137.87,0.04684458]
[1723824034322,0.04894325,137.9,137.89,55.8452]
[1723824034537,0.04894325,137.9,137.89,52.22]
[1723824035633,0.04894325,137.9,137.89,55.8452]
[1723824036727,2.69,137.94,137.92,3.6242]
[1723824037126,1.2899,137.94,137.91,52.22]
[1723824037630,7.1882,137.99,137.93,52.22]
[1723824037824,5.89483644,137.98,137.96,3.6232]
[1723824038021,1.3298,137.98,137.96,3.6232]
[1723824038225,1.37824943,137.98,137.96,3.6232]
[1723824038645,1.37824943,137.98,137.96,3.67670697]
[1723824038929,1.37824943,137.98,137.96,0.05350697]
[1723824039934,1.37824943,137.98,137.96,3.67670697]
[1723824040437,1.37824943,137.98,137.97,3.6231]
[1723824040438,0.04844943,137.98,137.97,3.6231]
[1723824042232,0.04844943,137.98,137.96,0.05350697]
[1723824044531,4.56896449,137.97,137.96,0.05350697]
[1723824044742,1.34,137.97,137.96,0.05350697]
[1723824044929,7.23889511,137.97,137.89,52.22]
[1723824045134,5.83259511,137.96,137.9,3.6249]
[1723824045336,4.56899511,137.95,137.9,3.6249]
[1723824045537,4.56899511,137.94,137.9,3.6249]
[1723824045737,3.70674889,137.95,137.9,3.6249]
[1723824045943,4.56504589,137.94,137.87,52.22]
[1723824046130,4.5620848,137.93,137.91,0.04960369]
[1723824046329,4.5620848,137.92,137.85,52.22]
[1723824046526,5.8310848,137.91,137.85,52.22]
[1723824046829,1.269,137.91,137.85,52.22]
[1723824047432,1.269,137.91,137.85,55.8461]
[1723824047635,0.04761275,137.89,137.87,0.05375989]
[1723824050741,0.04761275,137.89,137.87,3.67925989]
[1723824051042,0.04761275,137.89,137.88,3.6254]
[1723824051432,0.04761275,137.89,137.87,0.05375989]
[1723824054334,4.55393611,137.88,137.87,0.05375989]
[1723824054536,4.55430335,137.88,137.87,0.05375989]
[1723824055044,4.55421846,137.88,137.87,0.05375989]
[1723824055942,4.55421846,137.88,137.82,3.6269]
[1723824056142,0.04761275,137.89,137.82,3.6269]
[1723824056343,4.55503955,137.88,137.82,3.6269]
[1723824056541,0.04761275,137.89,137.83,3.6266]
[1723824056840,4.55517895,137.88,137.83,3.6266]
[1723824057039,4.55517895,137.87,137.83,52.22]
[1723824057248,0.05245929,137.87,137.84,0.05403109]
[1723824057645,0.05245929,137.87,137.85,3.6261]
[1723824058441,0.05245929,137.87,137.84,3.68033109]
[1723824059254,0.05245929,137.87,137.85,3.6262]
[1723824059446,0.05245929,137.87,137.84,52.27403109]
[1723824059746,0.05245929,137.87,137.85,3.626]
[1723824060043,0.05245929,137.87,137.84,52.27403109]
[1723824060342,0.05245929,137.87,137.84,0.05403109]
[1723824062143,4.55488431,137.86,137.84,0.05403109]
[1723824062357,3.54734987,137.86,137.84,0.05403109]
[1723824063042,0.05245929,137.87,137.84,0.05403109]
[1723824063247,1.3214,137.85,137.84,0.05403109]
[1723824064348,0.05245929,137.87,137.84,0.05403109]
[1723824065045,0.05245929,137.87,137.85,52.22]
[1723824066049,0.05245929,137.87,137.86,3.6259]
[1723824066937,2.7897,137.94,137.85,52.22]
[1723824067137,4.56418737,137.93,137.9,52.22]
[1723824067346,5.09224896,137.94,137.9,52.22]
[1723824067548,4.56356095,137.93,137.9,52.22]
[1723824067746,1.4013,137.94,137.9,52.22]
[1723824068047,0.05114454,137.93,137.91,0.05297237]
[1723824068738,4.56323754,137.92,137.91,0.05297237]
[1723824068942,4.56323754,137.92,137.85,52.22]
[1723824069248,4.56323754,137.91,137.85,52.22]
[1723824069441,5.92,137.92,137.85,52.22]
[1723824069442,4.56323754,137.9,137.85,52.22]
[1723824069643,5.92,137.92,137.87,52.22]
[1723824069845,4.56104973,137.91,137.87,52.22]
[1723824070067,5.92,137.92,137.87,52.22]
[1723824070238,0.05324212,137.9,137.88,0.05236164]
[1723824071148,4.5599487,137.89,137.82,52.22]
[1723824071343,5.9140961,137.88,137.8,52.22]
[1723824071543,8.1946929,137.87,137.8,52.22]
[1723824071849,1.3556,137.88,137.8,52.22]
[1723824072049,4.5576735,137.87,137.8,52.22]
[1723824072250,0.05170785,137.85,137.82,0.05374709]
[1723824073241,4.55320292,137.84,137.82,0.05374709]
[1723824073439,0.05170785,137.85,137.82,0.05374709]
[1723824073649,4.55308278,137.84,137.82,0.05374709]
[1723824073843,4.55308278,137.83,137.76,3.6285]
[1723824074051,1.3413,137.82,137.76,3.6285]
[1723824074240,7.2613,137.82,137.76,3.6285]
[1723824074853,7.2613,137.82,137.75,52.22]
[1723824075051,0.05459793,137.8,137.78,0.03603647]
[1723824076050,3.72364787,137.8,137.78,0.03603647]
[1723824076251,0.05459793,137.8,137.78,0.03603647]
[1723824077152,0.05459793,137.8,137.79,52.22]
[1723824077952,1.3341,137.86,137.79,52.22]
[1723824078151,1.3341,137.86,137.81,52.22]
[1723824078451,235.9,137.9,137.84,52.22]
[1723824078658,5.88861741,137.89,137.84,52.22]
[1723824078849,4.55451741,137.88,137.84,52.22]
[1723824079158,1.3341,137.89,137.84,52.22]
[1723824079359,0.05519532,137.87,137.85,0.05106085]
[1723824080250,3.72226151,137.87,137.85,0.05106085]
[1723824080552,0.05519532,137.87,137.85,0.05106085]
[1723824080944,3.68992186,137.86,137.85,0.05106085]
[1723824081356,0.05519532,137.87,137.85,0.05106085]
[1723824081651,4.55843789,137.86,137.77,52.22]
[1723824081853,3.59368352,137.87,137.77,52.22]
[1723824081854,5.82513789,137.85,137.77,52.22]
[1723824082060,4.55843789,137.84,137.77,52.22]
[1723824082251,5.9,137.84,137.75,52.22]
[1723824082557,5.92711225,137.83,137.75,55.8487]
[1723824082748,0.05167249,137.81,137.78,0.03957355]
[1723824083351,3.59580047,137.8,137.78,0.03957355]
[1723824083752,0.05167249,137.81,137.78,0.03957355]
[1723824084254,3.7155033,137.8,137.78,0.03957355]
[1723824084760,0.05167249,137.81,137.78,0.03957355]
[1723824092879,52.27167249,137.81,137.7,52.22]
[1723824093159,1.3697,137.83,137.69,5.9]
[1723824093160,52.22,137.79,137.69,5.9]
[1723824093367,13.02025605,137.78,137.68,52.22]
[1723824093558,8.4577,137.78,137.7,55.8499]
[1723824093757,8.4577,137.78,137.7,52.22]
[1723824093954,0.0471181,137.75,137.7,52.22]
[1723824094158,0.0471181,137.75,137.72,3.6294]
[1723824094359,0.0471181,137.75,137.72,52.22]
[1723824094662,0.0471181,137.75,137.73,3.6092]
[1723824094865,0.0471181,137.75,137.72,52.22]
[1723824095258,0.0471181,137.75,137.72,55.8495]
[1723824095666,0.0471181,137.75,137.72,52.22]
[1723824095864,1.3697,137.83,137.74,52.22]
[1723824096061,4.56799659,137.82,137.77,52.22]
[1723824096366,7.2697,137.83,137.77,52.22]
[1723824096758,7.2697,137.83,137.78,3.6279]
[1723824097063,0.04674446,137.81,137.79,0.0471181]
[1723824098456,52.22,137.93,137.8,104.44]
[1723824098667,5.87938143,137.89,137.84,3.6263]
[1723824098866,4.57158143,137.88,137.84,3.6263]
[1723824099069,4.57158143,137.88,137.85,52.22]
[1723824099268,9.45932361,137.94,137.87,55.8457]
[1723824099466,5.88021949,137.93,137.87,52.22]
[1723824099772,4.57241949,137.92,137.87,52.22]
[1723824100064,4.61828492,137.92,137.89,0.0538772]
[1723824100256,0.04586543,137.92,137.89,0.0538772]
[1723824108163,4.56576887,137.91,137.82,52.22]
[1723824108361,4.56576887,137.9,137.83,3.6267]
[1723824108564,8.23360769,137.89,137.83,3.6267]
[1723824108868,5.9,137.92,137.82,52.22]
[1723824109169,0.05463303,137.88,137.86,0.03998535]
[1723824109367,4.56349304,137.87,137.86,0.03998535]
[1723824109672,11.79059304,137.87,137.86,0.03998535]
[1723824110069,15.40964629,137.87,137.86,0.03998535]
[1723824112569,15.40964629,137.87,137.79,3.6277]
[1723824112762,5.94339304,137.86,137.78,52.22]
[1723824112966,4.56349304,137.85,137.78,52.22]
[1723824113167,1.3799,137.86,137.78,52.22]
[1723824113366,4.56105797,137.85,137.78,52.22]
[1723824113568,0.04719339,137.83,137.8,3.6274]
[1723824114265,0.04719339,137.83,137.78,52.22]
[1723824115063,0.04719339,137.83,137.79,3.6277]
[1723824115261,0.04719339,137.83,137.78,52.22]
[1723824116377,0.04719339,137.83,137.79,3.6276]
[1723824116972,0.04719339,137.83,137.8,3.6275]
[1723824118375,0.04719339,137.83,137.78,52.22]
[1723824119377,0.04719339,137.83,137.79,3.6277]
[1723824120175,0.04719339,137.83,137.78,55.8479]
[1723824120377,0.04719339,137.83,137.78,52.22]
[1723824120682,0.04719339,137.83,137.79,3.6278]
[1723824120981,0.04719339,137.83,137.8,52.22]
[1723824121673,0.04719339,137.83,137.78,55.8479]
[1723824121875,4.56411268,137.82,137.78,52.22]
[1723824122184,4.56336623,137.81,137.76,52.22]
[1723824122377,4.56336623,137.8,137.73,58.12]
[1723824122575,0.05530168,137.78,137.73,58.12]
[1723824122772,0.05530168,137.78,137.75,3.6287]
[1723824122973,0.05530168,137.78,137.74,52.22]
[1723824123474,0.05530168,137.78,137.75,3.6288]
[1723824123667,0.05530168,137.78,137.74,52.22]
[1723824123868,5.9,137.82,137.78,3.628]
[1723824124075,1.3799,137.86,137.8,52.22]
[1723824124278,4.56399047,137.85,137.8,52.22]
[1723824124476,4.56399047,137.84,137.78,52.22]
[1723824124777,4.56399047,137.83,137.78,52.22]
[1723824125078,4.56399047,137.82,137.78,52.22]
[1723824125273,4.5641744,137.81,137.79,0.05417795]
[1723824125485,0.04674934,137.82,137.79,0.05417795]
[1723824125780,4.56488806,137.81,137.79,0.05417795]
[1723824126086,0.04674934,137.82,137.79,0.05417795]
[1723824126384,4.56648487,137.81,137.79,0.05417795]
[1723824126584,0.04674934,137.82,137.79,0.05417795]
[1723824126880,4.56679383,137.81,137.79,0.05417795]
[1723824127074,0.04674934,137.82,137.79,0.05417795]
[1723824127276,4.56723169,137.81,137.79,0.05417795]
[1723824127577,0.04674934,137.82,137.8,52.22]
[1723824127971,0.04674934,137.82,137.81,3.6273]
[1723824128575,0.04674934,137.82,137.8,52.22]
[1723824128576,7.253,137.9,137.8,104.44]
[1723824128773,11.82327487,137.89,137.84,52.22]
[1723824128978,4.57027487,137.88,137.84,52.22]
[1723824129178,4.57027487,137.87,137.84,52.22]
[1723824129379,7.2894,137.9,137.84,52.22]
[1723824129681,0.04927788,137.88,137.86,0.04625738]
[1723824129880,4.56960287,137.87,137.86,0.04625738]
[1723824131380,4.56960287,137.87,137.86,55.89225738]
[1723824131582,0.04927788,137.88,137.86,52.26625738]
[1723824132286,0.04927788,137.88,137.87,3.6257]
[1723824134180,0.04927788,137.88,137.86,0.04625738]
[1723824136388,0.04927788,137.88,137.87,52.22]
[1723824139189,0.04927788,137.88,137.87,55.8457]
[1723824139792,233.1932,137.94,137.88,3.6253]
[1723824139994,7.1932,137.94,137.89,52.22]
[1723824140695,7.1932,137.94,137.89,55.845]
[1723824140896,0.04798241,137.93,137.9,0.04986264]
[1723824143500,4.55493465,137.92,137.9,0.04986264]
[1723824143799,4.55493465,137.91,137.9,0.04986264]
[1723824144000,4.55493465,137.92,137.9,0.04986264]
[1723824144291,0.04798241,137.93,137.9,0.04986264]
[1723824144696,4.55474799,137.92,137.9,0.04986264]
[1723824144890,0.04798241,137.93,137.9,0.04986264]
[1723824145199,4.55466512,137.92,137.9,3.67466264]
[1723824145492,0.04798241,137.93,137.9,0.04986264]
[1723824145889,4.55500652,137.92,137.9,0.04986264]
[1723824146095,0.04798241,137.93,137.9,0.04986264]
[1723824146290,4.55475135,137.92,137.9,0.04986264]
[1723824146599,4.55475135,137.91,137.9,0.04986264]
[1723824146796,4.55475135,137.91,137.83,5.88]
[1723824146993,4.55475135,137.91,137.79,52.22]
[1723824146994,5.82286195,137.9,137.79,52.22]
[1723824147297,56.77216195,137.89,137.79,55.8476]
[1723824147498,4.55216195,137.88,137.79,55.8476]
[1723824147799,10.43216195,137.87,137.79,52.22]
[1723824148002,4.55216195,137.86,137.81,3.6271]
[1723824148200,4.60557268,137.85,137.82,0.05341814]
[1723824148392,0.05341073,137.85,137.82,0.05341814]
[1723824150797,4.55083573,137.84,137.82,0.05341814]
[1723824150999,4.55083573,137.83,137.82,0.05341814]
[1723824151997,0.05341073,137.85,137.82,0.05341814]
[1723824151998,5.84443573,137.84,137.82,0.05341814]
[1723824152204,4.55083573,137.83,137.82,0.05341814]
[1723824152698,4.55083573,137.83,137.75,52.22]
[1723824152905,4.55083573,137.83,137.73,52.22]
[1723824152906,10.43083573,137.82,137.73,52.22]
[1723824153204,10.43083573,137.82,137.73,55.8493]
[1723824153205,4.55083573,137.81,137.73,55.8493]
[1723824153403,8.12512617,137.81,137.73,55.8493]
[1723824153603,4.55083573,137.8,137.71,52.22]
[1723824153906,0.04775355,137.78,137.76,0.04757127]
[1723824154094,4.55083573,137.77,137.76,0.04757127]
[1723824154298,3.67913919,137.77,137.76,0.04757127]
[1723824154500,10.43071344,137.77,137.69,55.8503]
[1723824154804,4.5497912,137.76,137.67,53.6119]
[1723824155013,9.46108597,137.77,137.68,3.6306]
[1723824155300,4.54807008,137.76,137.67,53.6119]
[1723824155506,16.71408597,137.77,137.67,57.2427]
[1723824155694,16.71408597,137.77,137.67,53.6119]
[1723824155695,4.54755826,137.76,137.67,53.6119]
[1723824155898,0.04908301,137.73,137.67,53.6119]
[1723824156106,0.04908301,137.73,137.67,52.22]
[1723824156704,0.04908301,137.73,137.69,52.22]
[1723824157305,0.04908301,137.73,137.69,55.8503]
[1723824158005,0.04908301,137.73,137.69,52.22]
[1723824158202,0.04908301,137.73,137.67,52.22]
[1723824158425,0.04908301,137.73,137.68,3.6306]
[1723824158606,0.04908301,137.73,137.67,52.22]
[1723824158803,0.04908301,137.73,137.69,52.22]
[1723824159300,0.04908301,137.73,137.71,52.22]
[1723824160106,0.04908301,137.73,137.71,55.8497]
[1723824162313,0.04908301,137.73,137.67,58.1]
[1723824163207,0.04908301,137.73,137.67,52.22]
[1723824163610,0.04908301,137.73,137.67,55.8508]
[1723824163812,0.04908301,137.73,137.65,52.22]
[1723824164111,52.22,137.74,137.63,52.22]
[1723824164316,0.04832246,137.7,137.64,3.6316]
[1723824164719,3.58565941,137.69,137.63,55.8519]
[1723824165105,0.04832246,137.7,137.63,52.22]
[1723824165311,3.76397337,137.7,137.63,52.22]
[1723824165510,0.04832246,137.7,137.63,52.22]
[1723824166111,3.6309,137.68,137.63,55.8518]
[1723824166308,3.62199941,137.7,137.61,52.22]
[1723824166512,3.62199941,137.7,137.62,3.6321]
[1723824166710,3.57367695,137.7,137.62,3.6321]
[1723824167014,53.5356,137.71,137.61,55.8524]
[1723824167515,0.05454916,137.67,137.61,55.8524]
[1723824167717,5.93454916,137.67,137.61,52.22]
[1723824168318,5.93454916,137.67,137.6,3.6327]
[1723824168512,1.2656,137.66,137.59,55.853]
[1723824168917,1.3711,137.65,137.59,55.853]
[1723824169118,3.6319,137.64,137.6,3.6328]
[1723824169316,3.68724002,137.64,137.59,52.22]
[1723824169718,3.6321,137.63,137.59,52.18]
[1723824169923,0.05534002,137.64,137.56,52.22]
[1723824170131,1.37954002,137.64,137.56,52.22]
[1723824170327,3.6327,137.61,137.56,55.8536]
[1723824170632,3.72118222,137.61,137.56,55.8536]
[1723824170928,3.67907281,137.6,137.56,52.22]
[1723824171124,0.04607281,137.6,137.54,52.22]
[1723824171330,3.6343,137.55,137.52,52.22]
[1723824171628,0.04607281,137.6,137.5,52.22]
[1723824171629,7.2486,137.59,137.5,52.22]
[1723824171826,1.3832,137.58,137.51,3.635]
[1723824172018,1.3832,137.58,137.5,52.22]
[1723824172224,0.04899253,137.56,137.48,52.22]
[1723824172419,3.6349,137.53,137.48,52.22]
[1723824172728,3.56174011,137.55,137.48,52.22]
[1723824173027,1.3533,137.57,137.5,52.22]
[1723824173224,0.0465245,137.53,137.52,52.22]
[1723824173526,3.634,137.56,137.52,52.22]
[1723824173828,0.04590319,137.54,137.52,52.22]
[1723824174221,0.04590319,137.54,137.52,55.8548]
[1723824174419,0.04590319,137.54,137.5,52.22]
[1723824174626,3.68050319,137.54,137.5,55.8553]